bitfinex/quotes_SOLUSD_20241215
["timestamp","ask_amount","ask_price","bid_price","bid_amount"]
[1734305043273,20.0,222.57,222.41,5.0]
[1734305043475,20.19614091,222.56,222.38,35.0]
[1734305043662,20.0,222.54,222.38,30.0]
[1734305043982,20.0,222.54,222.39,5.0]
[1734305044191,0.07065091,222.53,222.39,5.0]
[1734305045464,0.07065091,222.53,222.41,0.58]
[1734305045772,0.07065091,222.53,222.47,1.57543878]
[1734305045989,0.07065091,222.53,222.43,0.70710928]
[1734305046288,0.07065091,222.53,222.45,5.0]
[1734305046472,0.07065091,222.53,222.47,0.58]
[1734305046770,0.07065091,222.53,222.47,1.28710928]
[1734305046958,0.5474998,222.89,222.7,136.7]
[1734305047270,0.5474998,222.89,222.57,22.1319287]
[1734305047271,5.0,222.87,222.6,5.0]
[1734305047450,5.0,222.82,222.62,5.66]
[1734305047756,5.0,222.8,222.62,5.66]
[1734305048241,0.84163006,222.87,222.63,5.12549]
[1734305048242,5.0,222.84,222.63,5.12549]
[1734305048430,5.0,222.79,222.62,5.66]
[1734305048636,0.12549,222.78,222.62,5.66]
[1734305048828,0.12549,222.78,222.56,30.0]
[1734305048829,0.12549,222.75,222.54,5.0]
[1734305049026,5.0,222.8,222.59,5.0]
[1734305049233,5.0,222.82,222.7,13.49]
[1734305049462,0.84175803,222.87,222.69,27.02]
[1734305049463,5.0,222.86,222.69,27.02]
[1734305049639,5.0,222.82,222.69,27.02]
[1734305049964,5.0,222.84,222.69,27.02]
[1734305050257,5.0,222.84,222.63,4.62349]
[1734305050441,0.84138089,222.86,222.7,31.518]
[1734305050442,5.0,222.86,222.7,31.518]
[1734305050641,5.0,222.86,222.71,2.24364304]
[1734305050952,1.5798,222.87,222.62,5.0]
[1734305050953,5.84137602,222.85,222.62,5.0]
[1734305051152,5.0,222.82,222.64,13.49]
[1734305051328,5.0,222.85,222.7,17.988]
[1734305051657,23.776884,222.84,222.7,31.518]
[1734305051846,20.0,222.84,222.71,2.24355589]
[1734305052039,20.84139847,222.84,222.71,2.24355589]
[1734305052243,20.84139847,222.84,222.73,13.49]
[1734305052244,20.0,222.84,222.73,13.49]
[1734305052583,1.5798,222.87,222.73,40.51]
[1734305052937,1.5798,222.87,222.77,13.49]
[1734305053134,5.0,222.85,222.67,14.18237995]
[1734305053333,0.12549,222.82,222.68,27.02]
[1734305053669,0.12549,222.82,222.68,2.2433097]
[1734305053670,0.96696481,222.82,222.68,2.2433097]
[1734305053895,20.0,222.75,222.64,0.69140151]
[1734305054099,20.0,222.75,222.63,0.69140151]
[1734305054597,20.0,222.75,222.64,13.49]
[1734305054986,0.12549,222.82,222.64,13.49]
[1734305054987,20.0,222.8,222.64,13.49]
[1734305055188,20.0,222.8,222.66,13.49]
[1734305055367,5.0,222.83,222.66,13.49]
[1734305056703,20.0,222.79,222.72,1.49823761]
[1734305056989,20.0,222.79,222.72,1.49862112]
[1734305057188,23.776884,222.82,222.67,13.49]
[1734305057393,23.776884,222.82,222.73,1.49845805]
[1734305057597,0.12549,222.79,222.73,1.49845805]
[1734305057776,0.12549,222.79,222.68,1.49845805]
[1734305057777,6.4068,222.73,222.68,1.49845805]
[1734305057987,6.4068,222.73,222.66,1.49845805]
[1734305058174,6.4068,222.73,222.64,1.49845805]
[1734305058368,23.776884,222.69,222.63,1.49845805]
[1734305058569,20.0,222.66,222.63,1.49845805]
[1734305058788,20.0,222.66,222.62,1.49845805]
[1734305059115,6.4068,222.73,222.63,2.24464309]
[1734305059116,48.776884,222.64,222.63,2.24464309]
[1734305059597,20.0,222.64,222.63,2.24464309]
[1734305059809,20.0,222.66,222.57,1.49845805]
[1734305060096,20.0,222.62,222.58,2.24530193]
[1734305060298,20.0,222.62,222.59,2.24530193]
[1734305060477,20.0,222.62,222.6,2.24530193]
[1734305060679,20.0,222.62,222.61,2.24530193]
[1734305061387,20.0,222.62,222.61,4.04166546]
[1734305061813,1.6592,222.69,222.61,4.04166546]
[1734305062125,1.6592,222.69,222.65,1.50549237]
[1734305062285,1.6592,222.69,222.66,3.7507943]
[1734305062485,1.6592,222.69,222.67,2.24530193]
[1734305062690,25.436084,222.69,222.68,2.24530193]
[1734305062897,30.436084,222.69,222.68,2.24530193]
[1734305063131,20.0,222.67,222.66,1.50549237]
[1734305063419,20.0,222.65,222.6,1.50549237]
[1734305063731,20.0,222.65,222.59,1.50549237]
[1734305063732,20.0,222.63,222.59,1.50549237]
[1734305064222,20.0,222.63,222.61,1.50549237]
[1734305064431,20.0,222.66,222.61,3.30167707]
[1734305064587,20.0,222.66,222.63,1.50549237]
[1734305065209,20.0,222.66,222.64,1.50549237]
[1734305065895,25.0,222.68,222.64,1.50549237]
[1734305066189,5.0,222.71,222.67,1.50549237]
[1734305066397,5.0,222.71,222.6,0.69524287]
[1734305066632,5.0,222.71,222.68,1.51079647]
[1734305067128,5.0,222.71,222.69,1.51079647]
[1734305067494,20.0,222.7,222.69,1.51079647]
[1734305067692,20.0,222.7,222.64,1.79572043]
[1734305067921,20.0,222.7,222.65,1.79572043]
[1734305068125,20.0,222.7,222.69,1.51246226]
[1734305068291,20.0,222.7,222.61,0.69992023]
[1734305068492,20.0,222.7,222.62,1.79575213]
[1734305068805,11.4068,222.73,222.65,0.69992023]
[1734305069041,11.4068,222.73,222.66,1.79575213]
[1734305069042,5.0,222.71,222.66,1.79575213]
[1734305069256,5.0,222.71,222.67,1.79575213]
[1734305069453,5.0,222.71,222.68,1.79575213]
[1734305069758,11.4068,222.73,222.69,1.79564939]
[1734305069951,6.4068,222.73,222.7,1.79564939]
[1734305070129,6.4068,222.73,222.56,19.02254409]
[1734305070130,20.0,222.7,222.65,0.69992023]
[1734305070329,20.0,222.7,222.66,1.79554772]
[1734305070527,20.0,222.7,222.67,1.79554772]
[1734305070723,20.0,222.75,222.68,1.79554772]
[1734305071032,11.3188,222.8,222.69,1.79554772]
[1734305071239,11.3188,222.8,222.78,1.51719204]
[1734305071463,11.3188,222.8,222.79,2.2441349]
[1734305072035,11.3188,222.8,222.79,3.76121518]
[1734305072262,11.3188,222.8,222.79,2.2441349]
[1734305073161,11.3188,222.8,222.79,4.0392309]
[1734305073483,6.3188,222.8,222.79,4.0392309]
[1734305073687,6.5801,222.84,222.79,4.0392309]
[1734305073857,6.5801,222.84,222.83,1.51842705]
[1734305074059,6.5801,222.84,222.83,2.2441349]
[1734305074856,30.482474,222.84,222.83,2.2441349]
[1734305075057,23.776884,222.83,222.82,1.51801104]
[1734305075392,23.776884,222.83,222.61,11.2301]
[1734305075393,5.0,222.78,222.75,1.79501257]
[1734305075566,20.0,222.78,222.75,1.79501257]
[1734305075768,20.0,222.78,222.76,4.03891894]
[1734305075978,20.0,222.78,222.73,0.7028348]
[1734305075979,20.0,222.77,222.73,0.7028348]
[1734305076288,5.0,222.79,222.74,4.03883246]
[1734305076466,5.0,222.79,222.75,4.74166726]
[1734305076668,5.0,222.79,222.76,4.03883246]
[1734305076880,5.0,222.79,222.77,4.03883246]
[1734305077057,5.0,222.79,222.78,4.03883246]
[1734305077262,5.0,222.79,222.78,2.24379581]
[1734305077473,5.0,222.79,222.78,3.7383057]
[1734305077899,29.027864,222.79,222.78,2.24379581]
[1734305078696,20.0,222.75,222.71,1.49450989]
[1734305078983,5.0,222.74,222.72,3.7407663]
[1734305079184,5.0,222.74,222.73,2.24453351]
[1734305079393,5.0,222.74,222.67,1.79552913]
[1734305079394,5.0,222.68,222.67,1.79552913]
[1734305079596,5.0,222.66,222.64,1.79592507]
[1734305079766,25.0,222.66,222.65,1.79592507]
[1734305080091,0.84212163,222.69,222.63,1.79592507]
[1734305080092,48.776884,222.64,222.63,1.79592507]
[1734305080257,48.776884,222.64,222.58,3.29237895]
[1734305080258,25.0,222.61,222.58,3.29237895]
[1734305080461,23.776884,222.64,222.56,1.49623279]
[1734305080462,20.0,222.58,222.56,1.49623279]
[1734305080682,20.0,222.58,222.57,1.79614616]
[1734305080880,20.0,222.58,222.56,1.49623279]
[1734305081198,5.0,222.59,222.54,3.29266915]
[1734305081386,5.0,222.59,222.53,1.49623279]
[1734305081887,20.0,222.63,222.49,0.6973695]
[1734305081888,25.0,222.67,222.55,1.49623279]
[1734305082095,5.0,222.67,222.58,1.49623279]
[1734305082602,5.0,222.67,222.57,1.49623279]
[1734305082888,5.0,222.67,222.55,1.79643636]
[1734305082889,5.0,222.67,222.58,3.29266915]
[1734305083060,5.0,222.72,222.58,1.49623279]
[1734305083265,5.0,222.72,222.62,1.49623279]
[1734305083565,5.0,222.72,222.63,1.49623279]
[1734305083958,5.0,222.72,222.62,1.49623279]
[1734305084173,5.0,222.72,222.62,1.49759183]
[1734305084464,6.3136,222.74,222.61,1.49759183]
[1734305084465,5.0,222.7,222.61,1.49759183]
[1734305084657,5.0,222.74,222.62,1.49759183]
[1734305084859,5.0,222.74,222.63,1.49759183]
[1734305085084,5.0,222.74,222.64,1.49759183]
[1734305085085,25.0,222.74,222.64,1.49759183]
[1734305085260,6.7305,222.87,222.64,1.49759183]
[1734305085261,5.0,222.78,222.65,0.12549]
[1734305085466,5.0,222.78,222.69,1.49759183]
[1734305085695,5.0,222.78,222.68,1.49759183]
[1734305086776,5.0,222.83,222.69,0.25098]
[1734305086962,5.0,222.83,222.69,1.74857183]
[1734305087167,5.0,222.85,222.69,20.77111592]
[1734305087367,5.0,222.85,222.71,0.12549]
[1734305087589,5.0,222.85,222.71,1.74857183]
[1734305087808,5.0,222.87,222.72,19.02254409]
[1734305087975,5.0,222.87,222.76,0.12549]
[1734305088180,5.5474998,222.89,222.76,0.25098]
[1734305088504,5.5474998,222.89,222.76,1.74857183]
[1734305089073,5.0,222.86,222.76,1.49759183]
[1734305089275,0.5474998,222.89,222.76,1.49759183]
[1734305089276,5.0,222.88,222.76,1.49759183]
[1734305089698,20.0,222.86,222.76,1.49759183]
[1734305089904,25.0,222.86,222.76,1.49759183]
[1734305090107,20.0,222.86,222.76,0.12549]
[1734305090310,25.0,222.86,222.76,0.12549]
[1734305090677,25.0,222.86,222.75,1.49506071]
[1734305090678,5.0,222.84,222.75,1.49506071]
[1734305090883,25.0,222.86,222.74,1.49506071]
[1734305091082,5.0,222.84,222.75,1.49506071]
[1734305091302,20.0,222.86,222.75,1.49506071]
[1734305091303,25.0,222.86,222.75,1.49506071]
[1734305091813,20.0,222.86,222.76,1.74604071]
[1734305091992,20.0,222.86,222.77,1.49506071]
[1734305092185,20.0,222.86,222.78,1.49506071]
[1734305092383,20.0,222.86,222.79,0.12549]
[1734305093113,20.0,222.86,222.79,1.49506071]
[1734305093295,20.0,222.86,222.78,1.49506071]
[1734305093477,20.0,222.86,222.78,1.49513324]
[1734305093904,20.0,222.86,222.78,1.4952206]
[1734305094210,20.0,222.86,222.77,1.4952206]
[1734305094682,5.0,222.85,222.77,1.4952206]
[1734305094875,5.0,222.85,222.76,1.4952206]
[1734305095110,20.0,222.86,222.77,1.4952206]
[1734305095618,25.0,222.86,222.77,1.4952206]
[1734305095986,20.0,222.86,222.77,1.4952206]
[1734305096181,0.5474998,222.89,222.77,1.4952206]
[1734305096182,0.5474998,222.89,222.83,20.51776469]
[1734305096417,0.5474998,222.89,222.85,1.4952206]
[1734305096611,0.5474998,222.89,222.84,1.4952206]
[1734305097318,0.5474998,222.89,222.85,1.4952206]
[1734305097489,0.5474998,222.89,222.83,1.4952206]
[1734305097817,0.5474998,222.89,222.84,1.7462006]
[1734305097992,0.5474998,222.89,222.84,1.4952206]
[1734305098187,0.5474998,222.89,222.84,0.25098]
[1734305098511,0.5474998,222.89,222.84,1.7462006]
[1734305098721,0.5474998,222.89,222.86,0.12549]
[1734305099083,0.5474998,222.89,222.85,1.4952206]
[1734305099289,0.5474998,222.89,222.84,3.28945972]
[1734305099594,0.5474998,222.89,222.84,1.4952206]
[1734305099995,0.5474998,222.89,222.82,1.79423912]
[1734305099996,0.5474998,222.89,222.83,1.4952206]
[1734305100192,0.5474998,222.89,222.84,1.4952206]
[1734305100504,0.5474998,222.89,222.85,1.4952206]
[1734305100698,0.5474998,222.89,222.84,1.4952206]
[1734305101023,0.5474998,222.89,222.83,0.12549]
[1734305101024,0.5474998,222.89,222.83,1.4952206]
[1734305101318,0.5474998,222.89,222.84,1.4952206]
[1734305102090,0.5474998,222.89,222.85,1.4952206]
[1734305102290,0.5474998,222.89,222.84,1.4952206]
[1734305103112,20.0,222.88,222.83,1.4952206]
[1734305103432,0.5474998,222.89,222.8,0.9952206]
[1734305103433,25.0,222.86,222.8,0.9952206]
[1734305103728,25.0,222.86,222.71,27.825685]
[1734305103729,20.0,222.84,222.75,19.02254409]
[1734305103944,5.0,222.83,222.76,1.79423912]
[1734305104112,5.0,222.81,222.72,1.79423912]
[1734305104296,0.5474998,222.89,222.69,1.794239]
[1734305104297,5.0,222.77,222.69,1.79423912]
[1734305104496,5.0,222.77,222.67,0.69724366]
[1734305104690,5.0,222.75,222.67,0.19724366]
[1734305104894,5.0,222.75,222.66,0.19724366]
[1734305105128,5.0,222.75,222.65,1.79423912]
[1734305105420,0.5474998,222.89,222.65,1.79423912]
[1734305105421,5.0,222.73,222.65,1.79423912]
[1734305105629,20.0,222.76,222.6,1.79423912]
[1734305105630,5.0,222.71,222.6,1.79423912]
[1734305105800,5.0,222.69,222.61,1.79423912]
[1734305106000,5.0,222.71,222.57,20.81678321]
[1734305106217,20.0,222.72,222.61,19.02254409]
[1734305106410,5.0,222.73,222.62,1.79423912]
[1734305106725,20.0,222.76,222.63,19.02254409]
[1734305106912,6.80496511,222.91,222.57,5.0]
[1734305106913,5.0,222.83,222.7,0.12549]
[1734305107113,5.0,222.85,222.73,19.02254409]
[1734305107499,5.0,222.85,222.72,19.02254409]
[1734305107715,6.1603,222.86,222.74,19.14803409]
[1734305107915,5.0,222.83,222.73,1.79453277]
[1734305108224,5.0,222.85,222.75,19.02254409]
[1734305108429,6.1603,222.86,222.76,0.12549]
[1734305108627,5.0,222.87,222.76,0.12549]
[1734305108628,5.0,222.87,222.76,1.91975114]
[1734305109130,5.5474998,222.89,222.78,19.02254409]
[1734305109325,5.5474998,222.89,222.79,1.79426114]
[1734305109506,0.5474998,222.89,222.8,0.8]
[1734305109698,20.0,222.87,222.8,4.04579155]
[1734305109910,0.5474998,222.89,222.88,5.0]
[1734305110242,6.6158998,223.11,222.88,5.0]
[1734305110243,5.0,223.04,222.89,24.027864]
[1734305110542,6.6158998,223.11,222.91,1.57702041]
[1734305110543,5.0,223.02,222.91,1.57702041]
[1734305110753,5.0,223.04,222.91,0.25098]
[1734305110932,7.45639497,223.11,222.91,0.25098]
[1734305110933,5.0,223.06,222.93,19.14803409]
[1734305111143,5.0,223.06,222.94,1.79359183]
[1734305111319,6.6158998,223.11,222.94,1.79359183]
[1734305111320,5.0,223.04,222.94,1.79359183]
[1734305111519,6.6158998,223.11,222.94,1.79359183]
[1734305111520,5.0,223.09,222.95,0.12549]
[1734305111720,5.0,223.0,222.95,1.45153041]
[1734305111952,5.0,223.0,222.84,11.17893464]
[1734305111953,5.0,223.02,222.93,1.45153041]
[1734305112118,5.0,223.04,222.93,1.45153041]
[1734305112438,5.0,223.04,222.95,1.45153041]
[1734305112747,5.0,223.04,222.92,1.45153041]
[1734305112748,5.0,223.0,222.92,1.45153041]
[1734305112951,5.0,222.98,222.91,1.45153041]
[1734305113246,5.0,222.96,222.89,1.45153041]
[1734305113461,20.0,223.0,222.89,1.45153041]
[1734305113462,5.0,222.94,222.89,1.45153041]
[1734305113617,20.0,223.0,222.8,31.60399483]
[1734305113618,5.0,222.98,222.86,1.45153041]
[1734305113825,20.0,223.0,222.88,1.45153041]
[1734305114117,5.0,223.06,222.92,0.12549]
[1734305114434,5.0,223.04,222.94,0.12549]
[1734305114635,5.0,223.04,222.94,1.57702041]
[1734305114826,5.0,223.04,222.95,1.45153041]
[1734305115022,5.0,223.07,222.95,1.45153041]
[1734305115227,5.0,223.07,222.94,0.12549]
[1734305115228,5.0,223.05,222.97,1.45153041]
[1734305115424,20.0,223.05,222.97,1.45153041]
[1734305115837,5.0,223.08,222.98,0.12549]
[1734305116241,6.6158998,223.11,222.97,1.45153041]
[1734305116242,5.0,223.06,222.97,1.45153041]
[1734305116734,5.0,223.08,222.97,1.45153041]
[1734305117244,25.0,223.08,222.97,1.45153041]
[1734305117442,20.0,223.05,223.0,1.45153041]
[1734305117737,5.0,223.09,222.99,1.45153041]
[1734305118058,5.0,223.09,222.96,32.59758666]
[1734305118059,11.6158998,223.11,223.01,1.45153041]
[1734305118226,11.6158998,223.11,223.02,1.45153041]
[1734305118227,5.0,223.09,223.02,1.45153041]
[1734305118429,5.0,223.09,223.01,1.45153041]
[1734305119444,0.5474998,223.11,223.02,1.70251041]
[1734305119644,0.5474998,223.11,223.04,0.12549]
[1734305119852,0.5474998,223.11,223.04,1.57702041]
[1734305120054,0.5474998,223.11,223.05,0.12549]
[1734305120254,0.5474998,223.11,223.07,1.45153041]
[1734305120425,0.5474998,223.11,223.08,1.45153041]
[1734305121526,0.5474998,223.11,223.08,1.42693608]
[1734305121732,0.5474998,223.11,223.07,1.42693608]
[1734305121944,0.5474998,223.11,223.04,0.25098]
[1734305121945,0.5474998,223.11,223.06,1.42693608]
[1734305122144,0.5474998,223.11,223.07,1.55242608]
[1734305122346,0.5474998,223.11,223.06,1.42693608]
[1734305122347,20.0,223.09,223.06,1.42693608]
[1734305122577,20.0,223.09,223.04,1.42693608]
[1734305122734,20.0,223.09,223.05,1.42693608]
[1734305122937,0.5474998,223.11,223.02,1.79359183]
[1734305122938,0.5474998,223.11,223.06,1.42693608]
[1734305123761,0.5474998,223.11,223.05,1.42693608]
[1734305123985,20.0,223.09,223.05,1.42693608]
[1734305124136,20.0,223.08,223.06,1.42693608]
[1734305124338,20.0,223.08,223.04,1.42693608]
[1734305124657,20.0,223.09,223.04,1.42693608]
[1734305124860,20.0,223.09,223.05,1.42693608]
[1734305125024,20.0,223.09,223.04,1.42693608]
[1734305125246,20.0,223.08,223.04,1.42693608]
[1734305125446,5.0,223.06,223.04,1.42693608]
[1734305125668,5.0,223.06,223.02,1.42693608]
[1734305125854,25.0,223.08,223.02,1.42693608]
[1734305126056,25.0,223.08,223.03,1.42693608]
[1734305126272,25.0,223.08,222.98,1.79359183]
[1734305126273,25.0,223.08,223.02,1.42693608]
[1734305126853,25.0,223.08,223.03,1.42693608]
[1734305126854,5.0,223.07,223.03,1.42693608]
[1734305127084,20.0,223.08,223.03,1.42693608]
[1734305127968,20.0,223.09,223.03,1.42693608]
[1734305128278,20.0,223.09,223.04,1.42693608]
[1734305128449,20.0,223.09,222.91,18.34362862]
[1734305128450,0.5474998,223.11,223.08,1.42693608]
[1734305128850,0.5474998,223.11,223.09,1.42693608]
[1734305129466,0.5474998,223.11,223.0,16.2104]
[1734305129467,0.5474998,223.11,223.1,1.42693608]
[1734305129962,0.5474998,223.11,223.08,1.79245542]
[1734305129963,20.0,223.1,223.08,1.42693608]
[1734305130157,20.5474998,223.11,223.08,1.42693608]
[1734305130158,20.0,223.09,223.08,1.42693608]
[1734305130360,20.0,223.08,223.07,1.42693608]
[1734305130556,20.0,223.08,223.06,1.42693608]
[1734305130863,20.0,223.08,223.03,1.42693608]
[1734305130864,5.0,223.07,223.03,1.42693608]
[1734305131380,5.0,223.06,223.03,1.42693608]
[1734305131585,25.0,223.08,223.03,1.42693608]
[1734305131758,5.0,223.06,223.03,1.42693608]
[1734305132267,5.0,223.06,223.02,1.42693608]
[1734305132470,5.0,223.06,223.03,3.21921477]
[1734305132664,5.0,223.06,223.03,1.42693608]
[1734305132875,20.0,223.1,223.04,1.42693608]
[1734305133080,20.0,223.08,223.05,1.79227869]
[1734305133391,20.0,223.08,223.07,1.43247827]
[1734305133758,20.0,223.08,223.06,1.43247827]
[1734305134013,20.0,223.08,223.05,1.43247827]
[1734305134379,5.0,223.07,223.06,1.43247827]
[1734305134600,5.0,223.07,222.94,11.2135]
[1734305134601,5.0,223.07,223.05,3.22475696]
[1734305134765,5.0,223.07,223.04,1.43247827]
[1734305134965,20.0,223.08,223.05,3.22475696]
[1734305135161,5.0,223.07,223.05,1.43247827]
[1734305135469,20.0,223.08,223.06,3.22475696]
[1734305135672,25.0,223.08,223.06,1.43247827]
[1734305135987,25.0,223.08,222.94,18.93733111]
[1734305135988,5.0,223.05,223.04,1.43247827]
[1734305136375,5.0,223.05,223.03,1.43247827]
[1734305136696,5.0,223.05,223.04,3.22475696]
[1734305136995,5.0,223.05,223.02,1.43287652]
[1734305137406,5.0,223.05,223.03,3.22553597]
[1734305137568,5.0,223.05,223.03,1.43287652]
[1734305137769,5.0,223.05,223.04,3.22553597]
[1734305137988,5.0,223.05,223.04,1.43287652]
[1734305138192,5.0,223.05,223.04,3.22553597]
[1734305138469,5.0,223.05,223.04,1.43287652]
[1734305138785,5.0,223.05,223.03,1.43287652]
[1734305139172,5.5474998,223.11,223.04,3.22553597]
[1734305139371,5.5474998,223.11,222.9,1.5889]
[1734305139372,5.0,223.08,223.07,1.43287652]
[1734305139604,5.0,223.08,223.06,3.22553597]
[1734305139910,5.0,223.08,223.05,1.43287652]
[1734305140077,5.0,223.1,223.06,1.43470565]
[1734305140288,5.0,223.1,223.07,1.79265945]
[1734305140603,0.5474998,223.11,223.08,1.79265945]
[1734305140604,20.0,223.09,223.08,1.79265945]
[1734305140804,0.5474998,223.11,223.08,1.79265945]
[1734305140805,0.4220998,223.11,223.09,37.392374]
[1734305140978,0.4220998,223.11,223.1,1.79265945]
[1734305141794,0.4220998,223.11,223.1,44.63236456]
[1734305142596,0.4220998,223.11,223.1,58.12236456]
[1734305142792,0.00057853,223.11,223.1,58.24785456]
[1734305143206,0.00057853,223.11,223.1,56.45519511]
[1734305143394,0.00057853,223.11,223.1,58.24638032]
[1734305143716,0.00057853,223.11,223.1,49.75638032]
[1734305144214,5.0,223.27,223.11,1.00079]
[1734305144390,5.0,223.27,223.18,1.42883065]
[1734305144997,5.0,223.29,223.19,0.25098]
[1734305145387,5.0,223.29,223.19,1.67981065]
[1734305146031,11.3262,223.31,223.19,20.61714176]
[1734305146189,11.3262,223.31,223.21,0.12549]
[1734305146613,11.3262,223.31,223.21,20.61714176]
[1734305146789,11.3262,223.31,223.22,1.79118521]
[1734305147117,11.3262,223.31,223.22,1.42883065]
[1734305147287,20.0,223.28,223.22,1.42883065]
[1734305147920,5.0,223.25,223.22,1.42883065]
[1734305148092,5.0,223.23,223.16,1.42883065]
[1734305148490,20.0,223.28,223.1,11.2055]
[1734305148491,5.0,223.21,223.15,1.42883065]
[1734305148884,5.0,223.21,223.14,1.42883065]
[1734305149103,5.0,223.21,223.15,1.42883065]
[1734305149309,5.0,223.21,223.12,1.79118521]
[1734305149507,5.0,223.21,223.15,1.41131023]
[1734305149726,5.0,223.21,223.1,18.93733111]
[1734305150025,5.0,223.21,223.14,1.41118569]
[1734305150193,5.0,223.21,223.15,1.41118569]
[1734305150387,5.0,223.23,223.15,1.41118569]
[1734305150993,5.0,223.25,223.15,1.41118569]
[1734305151329,5.0,223.23,223.17,1.41526591]
[1734305151492,5.0,223.23,223.18,1.79131489]
[1734305152120,5.0,223.23,223.19,3.2065808]
[1734305152297,5.0,223.23,223.18,1.41526591]
[1734305152505,5.0,223.23,223.19,1.79131489]
[1734305152906,6.3262,223.31,223.18,1.41526591]
[1734305152907,5.0,223.19,223.18,1.41526591]
[1734305153105,5.0,223.19,223.16,1.41526591]
[1734305153416,5.0,223.19,223.17,3.2065808]
[1734305153604,5.0,223.19,223.17,1.41526591]
[1734305153803,5.0,223.19,223.18,1.79131489]
[1734305154529,5.0,223.19,223.18,3.20860348]
[1734305155215,5.0,223.19,223.18,1.79131489]
[1734305155620,13.49,223.4,223.18,20.72853161]
[1734305155621,5.0,223.26,223.18,20.72853161]
[1734305155827,5.0,223.26,223.21,1.41805209]
[1734305156039,5.0,223.24,223.22,1.7912005]
[1734305156729,5.0,223.24,223.21,1.7912005]
[1734305157032,5.0,223.24,223.22,1.7912005]
[1734305157235,5.0,223.24,223.2,1.41749542]
[1734305158218,5.0,223.21,223.2,1.41749542]
[1734305158832,5.0,223.21,223.2,1.7912005]
[1734305159427,5.0,223.24,223.2,1.7912005]
[1734305159625,5.0,223.24,223.22,1.41762813]
[1734305159806,5.0,223.26,223.23,1.7912005]
[1734305160007,5.0,223.28,223.24,3.20839859]
[1734305160208,5.0,223.28,223.25,3.20839859]
[1734305160534,0.5474998,223.33,223.25,1.41719809]
[1734305160535,5.0,223.26,223.25,1.41719809]
[1734305161031,5.0,223.27,223.21,1.7912005]
[1734305161231,5.0,223.27,223.22,1.7912005]
[1734305161438,5.0,223.31,223.23,1.7912005]
[1734305161615,5.0,223.31,223.2,32.42733111]
[1734305161616,5.0,223.31,223.24,1.7912005]
[1734305161815,5.5474998,223.33,223.25,1.7912005]
[1734305162004,5.0,223.23,223.11,5.0]
[1734305162201,0.5,223.21,223.09,4.5]
[1734305162406,5.0,223.23,223.1,0.12549]
[1734305162407,5.5,223.23,223.1,0.12549]
[1734305162606,20.0,223.24,223.14,0.12549]
[1734305162822,0.5,223.29,223.16,0.12549]
[1734305163132,0.5,223.29,223.16,13.11549]
[1734305163334,5.5,223.27,223.19,23.776884]
[1734305163537,0.5,223.27,223.14,35.106074]
[1734305163725,5.0,223.29,223.16,23.902374]
[1734305163726,0.5,223.29,223.16,23.902374]
[1734305164065,20.0,223.28,223.18,23.902374]
[1734305164350,0.5,223.29,223.18,23.902374]
[1734305164351,20.0,223.26,223.18,0.12549]
[1734305164939,5.0,223.31,223.18,0.12549]
[1734305164940,20.0,223.28,223.18,0.12549]
[1734305165143,0.5,223.27,223.18,11.45248]
[1734305165342,0.5,223.27,223.2,0.25098]
[1734305165545,0.5,223.29,223.2,0.25098]
[1734305165755,20.0,223.28,223.2,0.25098]
[1734305165956,20.0,223.26,223.2,0.12549]
[1734305166128,20.0,223.26,223.18,11.2015]
[1734305166446,20.0,223.26,223.19,0.12549]
[1734305166649,20.0,223.24,223.18,11.2015]
[1734305167116,20.0,223.24,223.14,35.231564]